[Event "Titled Tuesday Blitz August 1 Early 2023"]
[White "Martinez Reyes, Pedro Ramon"]
[Black "Ning, Kaiyu"]
[WhiteFideId "3901807"]
[BlackFideId "8614750"]
[WhiteElo "2521"]
[BlackElo "2703"]
[Result "0-1"]
[Round "4"]
[TimeControl "180+1"]
[Date "2023.08.01"]
[WhiteClock "0:00:04"]
[BlackClock "0:00:53"]
[Board "83"]

1. d4 {[%clk 0:03:00]}  Nf6 {[%clk 0:02:59]} 2. Nc3 {[%clk 0:03:01]}  e6 {[%clk 0:03:00]} 3. e4 {[%clk 0:02:58]}  d5 {[%clk 0:03:00]} 4. Bg5 {[%clk 0:02:58]}  h6 {[%clk 0:02:56]} 5. Bxf6 {[%clk 0:02:51]}  Qxf6 {[%clk 0:02:57]} 6. exd5 {[%clk 0:02:50]}  Bb4 {[%clk 0:02:55]} 7. Bb5+ {[%clk 0:02:46]}  Bd7 {[%clk 0:02:50]} 8. Bxd7+ {[%clk 0:02:41]}  Nxd7 {[%clk 0:02:51]} 9. dxe6 {[%clk 0:02:38]}  Bxc3+ {[%clk 0:02:49]} 10. bxc3 {[%clk 0:02:38]}  Qxe6+ {[%clk 0:02:48]} 11. Qe2 {[%clk 0:02:30]}  Qxe2+ {[%clk 0:02:48]} 12. Nxe2 {[%clk 0:02:31]}  O-O-O {[%clk 0:02:45]} 13. O-O {[%clk 0:02:25]}  Nb6 {[%clk 0:02:45]} 14. Rfe1 {[%clk 0:02:06]}  Rhe8 {[%clk 0:02:42]} 15. Kf1 {[%clk 0:01:41]}  Nc4 {[%clk 0:02:40]} 16. Ng3 {[%clk 0:01:22]}  g6 {[%clk 0:02:35]} 17. Re2 {[%clk 0:01:18]}  h5 {[%clk 0:02:31]} 18. Rae1 {[%clk 0:01:15]}  Rxe2 {[%clk 0:02:30]} 19. Rxe2 {[%clk 0:01:14]}  Rd5 {[%clk 0:02:25]} 20. Ne4 {[%clk 0:01:00]}  b6 {[%clk 0:02:14]} 21. h4 {[%clk 0:00:59]}  Ra5 {[%clk 0:02:13]} 22. Ng5 {[%clk 0:00:57]}  Rxa2 {[%clk 0:02:12]} 23. Nxf7 {[%clk 0:00:32]}  a5 {[%clk 0:01:52]} 24. Ne5 {[%clk 0:00:20]}  Nd6 {[%clk 0:00:58]} 25. f3 {[%clk 0:00:17]}  a4 {[%clk 0:00:58]} 26. Nxg6 {[%clk 0:00:16]}  a3 {[%clk 0:00:58]} 27. Ne5 {[%clk 0:00:14]}  Ra1+ {[%clk 0:00:56]} 28. Kf2 {[%clk 0:00:14]}  a2 {[%clk 0:00:57]} 29. Nd3 {[%clk 0:00:04]}  Rb1 {[%clk 0:00:53]} 0-1


[Site "https://www.chess.com"]

[Event "Titled Tuesday Blitz August 1 Early 2023"]
[White "Gontcharov, Vladislav"]
[Black "Gunina, Valentina"]
[WhiteFideId "4123492"]
[BlackFideId "4167570"]
[WhiteElo "2521"]
[BlackElo "2702"]
[Result "1-0"]
[Round "4"]
[TimeControl "180+1"]
[Date "2023.08.01"]
[WhiteClock "0:00:06"]
[BlackClock "0:00:07"]
[Board "84"]

1. d4 {[%clk 0:03:00]}  d5 {[%clk 0:02:59]} 2. c4 {[%clk 0:03:00]}  c6 {[%clk 0:02:59]} 3. Nf3 {[%clk 0:02:59]}  Nf6 {[%clk 0:02:59]} 4. e3 {[%clk 0:02:59]}  Bf5 {[%clk 0:02:58]} 5. cxd5 {[%clk 0:02:50]}  cxd5 {[%clk 0:02:57]} 6. Nc3 {[%clk 0:02:50]}  Nc6 {[%clk 0:02:57]} 7. Qb3 {[%clk 0:02:41]}  a6 {[%clk 0:02:53]} 8. Ne5 {[%clk 0:02:34]}  e6 {[%clk 0:02:42]} 9. Qxb7 {[%clk 0:02:18]}  Nxe5 {[%clk 0:02:29]} 10. dxe5 {[%clk 0:02:18]}  Nd7 {[%clk 0:02:29]} 11. Bxa6 {[%clk 0:02:00]}  Rb8 {[%clk 0:02:04]} 12. Qc6 {[%clk 0:01:59]}  Rb6 {[%clk 0:02:04]} 13. Qa4 {[%clk 0:01:49]}  Rb4 {[%clk 0:02:00]} 14. Qd1 {[%clk 0:01:43]}  Nxe5 {[%clk 0:01:54]} 15. O-O {[%clk 0:01:39]}  Bd6 {[%clk 0:01:52]} 16. Bb5+ {[%clk 0:01:32]}  Kf8 {[%clk 0:01:52]} 17. a3 {[%clk 0:01:23]}  Rh4 {[%clk 0:01:50]} 18. g3 {[%clk 0:01:11]}  Bh3 {[%clk 0:01:22]} 19. Re1 {[%clk 0:00:49]}  Ng4 {[%clk 0:01:10]} 20. f4 {[%clk 0:00:42]}  Rh6 {[%clk 0:01:04]} 21. Re2 {[%clk 0:00:41]}  f5 {[%clk 0:01:01]} 22. b4 {[%clk 0:00:38]}  Kf7 {[%clk 0:01:00]} 23. Bb2 {[%clk 0:00:38]}  Qb6 {[%clk 0:00:56]} 24. Qe1 {[%clk 0:00:37]}  Rc8 {[%clk 0:00:53]} 25. Bd3 {[%clk 0:00:33]}  d4 {[%clk 0:00:53]} 26. Nb5 {[%clk 0:00:31]}  dxe3 {[%clk 0:00:50]} 27. Bd4 {[%clk 0:00:19]}  Qc6 {[%clk 0:00:50]} 28. a4 {[%clk 0:00:16]}  Bb8 {[%clk 0:00:42]} 29. a5 {[%clk 0:00:14]}  e5 {[%clk 0:00:41]} 30. fxe5 {[%clk 0:00:14]}  f4 {[%clk 0:00:41]} 31. Nd6+ {[%clk 0:00:09]}  Bxd6 {[%clk 0:00:41]} 32. exd6 {[%clk 0:00:09]}  f3 {[%clk 0:00:41]} 33. Bxe3 {[%clk 0:00:09]}  fxe2 {[%clk 0:00:40]} 34. Qxe2 {[%clk 0:00:09]}  Re6 {[%clk 0:00:38]} 35. b5 {[%clk 0:00:06]}  Qxd6 {[%clk 0:00:38]} 36. Bc4 {[%clk 0:00:04]}  Nxe3 {[%clk 0:00:37]} 37. Bxe6+ {[%clk 0:00:04]}  Qxe6 {[%clk 0:00:37]} 38. a6 {[%clk 0:00:04]}  Nd5 {[%clk 0:00:35]} 39. Qxe6+ {[%clk 0:00:03]}  Kxe6 {[%clk 0:00:34]} 40. a7 {[%clk 0:00:04]}  Nb6 {[%clk 0:00:28]} 41. Ra6 {[%clk 0:00:04]}  Ra8 {[%clk 0:00:21]} 42. Rxb6+ {[%clk 0:00:04]}  Kd5 {[%clk 0:00:22]} 43. Ra6 {[%clk 0:00:04]}  Kc5 {[%clk 0:00:21]} 44. Rc6+ {[%clk 0:00:03]}  Kxb5 {[%clk 0:00:21]} 45. Rc7 {[%clk 0:00:04]}  h6 {[%clk 0:00:17]} 46. Rxg7 {[%clk 0:00:04]}  Ka6 {[%clk 0:00:16]} 47. Kf2 {[%clk 0:00:05]}  Rxa7 {[%clk 0:00:15]} 48. Rg6+ {[%clk 0:00:05]}  Kb5 {[%clk 0:00:15]} 49. Rxh6 {[%clk 0:00:06]}  Rf7+ {[%clk 0:00:14]} 50. Ke3 {[%clk 0:00:06]}  Kc5 {[%clk 0:00:15]} 51. Rxh3 {[%clk 0:00:06]}  Kd5 {[%clk 0:00:14]} 52. Rh4 {[%clk 0:00:07]}  Ke5 {[%clk 0:00:13]} 53. Re4+ {[%clk 0:00:07]}  Kd5 {[%clk 0:00:14]} 54. Rf4 {[%clk 0:00:07]}  Ra7 {[%clk 0:00:13]} 55. Kf3 {[%clk 0:00:07]}  Rh7 {[%clk 0:00:11]} 56. h4 {[%clk 0:00:08]}  Ke5 {[%clk 0:00:11]} 57. Kg4 {[%clk 0:00:08]}  Rg7+ {[%clk 0:00:11]} 58. Kh3 {[%clk 0:00:09]}  Rg8 {[%clk 0:00:12]} 59. Rf1 {[%clk 0:00:09]}  Ke6 {[%clk 0:00:11]} 60. h5 {[%clk 0:00:09]}  Rg5 {[%clk 0:00:11]} 61. Kh4 {[%clk 0:00:10]}  Ra5 {[%clk 0:00:11]} 62. g4 {[%clk 0:00:10]}  Ke7 {[%clk 0:00:11]} 63. h6 {[%clk 0:00:10]}  Ra2 {[%clk 0:00:10]} 64. g5 {[%clk 0:00:10]}  Rh2+ {[%clk 0:00:10]} 65. Kg4 {[%clk 0:00:11]}  Ke6 {[%clk 0:00:11]} 66. Rf6+ {[%clk 0:00:10]}  Ke5 {[%clk 0:00:11]} 67. Rf1 {[%clk 0:00:10]}  Ke6 {[%clk 0:00:11]} 68. Ra1 {[%clk 0:00:07]}  Ke5 {[%clk 0:00:10]} 69. Re1+ {[%clk 0:00:06]}  Kd5 {[%clk 0:00:07]} 70. Kf5 {[%clk 0:00:06]} 1-0


[Site "https://www.chess.com"]

[Event "Titled Tuesday Blitz August 1 Early 2023"]
[White "only_strong_moves"]
[Black "Goltseva, Ekaterina"]
[BlackFideId "24173770"]
[WhiteElo "2702"]
[BlackElo "2519"]
[Result "0-1"]
[Round "4"]
[TimeControl "180+1"]
[Date "2023.08.01"]
[WhiteClock "0:00:00"]
[BlackClock "0:00:05"]
[Board "85"]

1. d4 {[%clk 0:03:00]}  d5 {[%clk 0:02:56]} 2. c4 {[%clk 0:03:01]}  dxc4 {[%clk 0:02:57]} 3. Nf3 {[%clk 0:03:00]}  a6 {[%clk 0:02:56]} 4. a4 {[%clk 0:02:57]}  Nf6 {[%clk 0:02:54]} 5. e3 {[%clk 0:02:55]}  Bg4 {[%clk 0:02:54]} 6. Bxc4 {[%clk 0:02:54]}  e6 {[%clk 0:02:54]} 7. O-O {[%clk 0:02:54]}  c5 {[%clk 0:02:52]} 8. h3 {[%clk 0:02:49]}  Bh5 {[%clk 0:02:52]} 9. Nc3 {[%clk 0:02:41]}  Nc6 {[%clk 0:02:52]} 10. d5 {[%clk 0:02:27]}  Ne5 {[%clk 0:02:26]} 11. Be2 {[%clk 0:02:26]}  Bxf3 {[%clk 0:02:19]} 12. Bxf3 {[%clk 0:02:27]}  Nxf3+ {[%clk 0:02:11]} 13. Qxf3 {[%clk 0:02:28]}  exd5 {[%clk 0:02:10]} 14. Rd1 {[%clk 0:02:28]}  Be7 {[%clk 0:01:59]} 15. Nxd5 {[%clk 0:02:28]}  Nxd5 {[%clk 0:01:59]} 16. Rxd5 {[%clk 0:02:29]}  Qc7 {[%clk 0:01:54]} 17. Bd2 {[%clk 0:02:06]}  O-O {[%clk 0:01:48]} 18. Bc3 {[%clk 0:02:06]}  Rfd8 {[%clk 0:01:37]} 19. Rad1 {[%clk 0:02:01]}  Rxd5 {[%clk 0:01:34]} 20. Rxd5 {[%clk 0:02:02]}  Rd8 {[%clk 0:01:28]} 21. Rf5 {[%clk 0:01:57]}  Bf8 {[%clk 0:01:23]} 22. g3 {[%clk 0:01:52]}  Qd7 {[%clk 0:01:18]} 23. Kg2 {[%clk 0:01:44]}  b5 {[%clk 0:01:17]} 24. axb5 {[%clk 0:01:05]}  axb5 {[%clk 0:01:18]} 25. e4 {[%clk 0:00:57]}  b4 {[%clk 0:01:11]} 26. Be5 {[%clk 0:00:51]}  Qe6 {[%clk 0:01:07]} 27. Bf4 {[%clk 0:00:41]}  f6 {[%clk 0:00:50]} 28. Rd5 {[%clk 0:00:40]}  Re8 {[%clk 0:00:49]} 29. e5 {[%clk 0:00:29]}  fxe5 {[%clk 0:00:44]} 30. Rxe5 {[%clk 0:00:24]}  Qf7 {[%clk 0:00:42]} 31. Rxe8 {[%clk 0:00:22]}  Qxe8 {[%clk 0:00:43]} 32. b3 {[%clk 0:00:19]}  Qe6 {[%clk 0:00:38]} 33. Qd3 {[%clk 0:00:13]}  h6 {[%clk 0:00:33]} 34. g4 {[%clk 0:00:12]}  Be7 {[%clk 0:00:30]} 35. Bg3 {[%clk 0:00:11]}  Bf6 {[%clk 0:00:29]} 36. Bd6 {[%clk 0:00:07]}  Bd4 {[%clk 0:00:27]} 37. Bf4 {[%clk 0:00:04]}  Qd5+ {[%clk 0:00:26]} 38. f3 {[%clk 0:00:04]}  Qf7 {[%clk 0:00:22]} 39. Bg3 {[%clk 0:00:02]}  Qe6 {[%clk 0:00:20]} 40. Bf2 {[%clk 0:00:02]}  Qd5 {[%clk 0:00:11]} 41. Bg3 {[%clk 0:00:02]}  Qa8 {[%clk 0:00:08]} 42. Be1 {[%clk 0:00:02]}  Qa2+ {[%clk 0:00:08]} 43. Kg3 {[%clk 0:00:00]}  Qa1 {[%clk 0:00:05]} 0-1


[Site "https://www.chess.com"]

[Event "Titled Tuesday Blitz August 1 Early 2023"]
[White "Schnaider, Ilan"]
[Black "Berezin, Viktor"]
[WhiteFideId "169013"]
[BlackFideId "14107872"]
[WhiteElo "2698"]
[BlackElo "2519"]
[Result "1-0"]
[Round "4"]
[TimeControl "180+1"]
[Date "2023.08.01"]
[WhiteClock "0:00:04"]
[BlackClock "0:00:08"]
[Board "86"]

1. e4 {[%clk 0:02:58]}  g6 {[%clk 0:02:58]} 2. d4 {[%clk 0:02:58]}  Bg7 {[%clk 0:02:59]} 3. Nc3 {[%clk 0:02:58]}  d6 {[%clk 0:02:59]} 4. f4 {[%clk 0:02:58]}  Nf6 {[%clk 0:03:00]} 5. Bd3 {[%clk 0:02:59]}  O-O {[%clk 0:03:00]} 6. Nf3 {[%clk 0:02:59]}  Na6 {[%clk 0:03:01]} 7. O-O {[%clk 0:02:58]}  c5 {[%clk 0:03:01]} 8. d5 {[%clk 0:02:56]}  Rb8 {[%clk 0:03:01]} 9. Re1 {[%clk 0:02:53]}  Bg4 {[%clk 0:02:56]} 10. a3 {[%clk 0:02:47]}  Nc7 {[%clk 0:02:54]} 11. a4 {[%clk 0:02:36]}  b6 {[%clk 0:02:45]} 12. h3 {[%clk 0:02:32]}  Bxf3 {[%clk 0:02:43]} 13. Qxf3 {[%clk 0:02:33]}  a6 {[%clk 0:02:44]} 14. Bd2 {[%clk 0:02:06]}  b5 {[%clk 0:02:42]} 15. axb5 {[%clk 0:02:06]}  axb5 {[%clk 0:02:43]} 16. Bf1 {[%clk 0:01:54]}  b4 {[%clk 0:02:31]} 17. Ne2 {[%clk 0:01:46]}  e6 {[%clk 0:02:26]} 18. dxe6 {[%clk 0:01:41]}  Nxe6 {[%clk 0:02:23]} 19. Be3 {[%clk 0:01:39]}  Nd7 {[%clk 0:02:09]} 20. c3 {[%clk 0:01:28]}  bxc3 {[%clk 0:02:05]} 21. bxc3 {[%clk 0:01:28]}  Rb3 {[%clk 0:01:56]} 22. Rad1 {[%clk 0:01:17]}  Qc7 {[%clk 0:01:52]} 23. f5 {[%clk 0:01:10]}  Ne5 {[%clk 0:01:48]} 24. Qg3 {[%clk 0:01:03]}  Nd8 {[%clk 0:01:37]} 25. Nf4 {[%clk 0:01:00]}  Ndc6 {[%clk 0:01:22]} 26. Nd5 {[%clk 0:00:55]}  Qb7 {[%clk 0:01:20]} 27. f6 {[%clk 0:00:46]}  Bh8 {[%clk 0:01:20]} 28. Bh6 {[%clk 0:00:45]}  Ra8 {[%clk 0:01:19]} 29. Qh4 {[%clk 0:00:43]}  Rb2 {[%clk 0:01:07]} 30. Ra1 {[%clk 0:00:35]}  Rb8 {[%clk 0:00:50]} 31. Ba6 {[%clk 0:00:26]}  Qd7 {[%clk 0:00:49]} 32. Be2 {[%clk 0:00:22]}  c4 {[%clk 0:00:40]} 33. Kh1 {[%clk 0:00:17]}  Nd3 {[%clk 0:00:38]} 34. Bxd3 {[%clk 0:00:16]}  cxd3 {[%clk 0:00:39]} 35. Rad1 {[%clk 0:00:16]}  d2 {[%clk 0:00:38]} 36. Rxd2 {[%clk 0:00:14]}  Rxd2 {[%clk 0:00:37]} 37. Bxd2 {[%clk 0:00:15]}  h5 {[%clk 0:00:36]} 38. Bh6 {[%clk 0:00:13]}  Rb2 {[%clk 0:00:35]} 39. Rf1 {[%clk 0:00:11]}  Kh7 {[%clk 0:00:34]} 40. Bg7 {[%clk 0:00:10]}  Ne5 {[%clk 0:00:32]} 41. Qg5 {[%clk 0:00:08]}  Bxg7 {[%clk 0:00:28]} 42. fxg7 {[%clk 0:00:09]}  Kxg7 {[%clk 0:00:28]} 43. Qf6+ {[%clk 0:00:09]}  Kh7 {[%clk 0:00:27]} 44. Qxe5 {[%clk 0:00:10]}  Qxh3+ {[%clk 0:00:10]} 45. gxh3 {[%clk 0:00:10]}  dxe5 {[%clk 0:00:10]} 46. Rxf7+ {[%clk 0:00:10]}  Kg8 {[%clk 0:00:11]} 47. Rc7 {[%clk 0:00:10]}  Kf8 {[%clk 0:00:10]} 48. Nf6 {[%clk 0:00:09]}  g5 {[%clk 0:00:10]} 49. Nxh5 {[%clk 0:00:09]}  Re2 {[%clk 0:00:09]} 50. Nf6 {[%clk 0:00:08]}  Rf2 {[%clk 0:00:09]} 51. Ng4 {[%clk 0:00:08]}  Re2 {[%clk 0:00:09]} 52. Nxe5 {[%clk 0:00:09]}  Rxe4 {[%clk 0:00:10]} 53. Nf3 {[%clk 0:00:08]}  g4 {[%clk 0:00:09]} 54. hxg4 {[%clk 0:00:07]}  Rxg4 {[%clk 0:00:10]} 55. Kh2 {[%clk 0:00:08]}  Ke8 {[%clk 0:00:10]} 56. Kh3 {[%clk 0:00:08]}  Re4 {[%clk 0:00:10]} 57. Kg3 {[%clk 0:00:08]}  Kd8 {[%clk 0:00:10]} 58. Rc5 {[%clk 0:00:09]}  Kd7 {[%clk 0:00:10]} 59. Nd4 {[%clk 0:00:09]}  Kd6 {[%clk 0:00:11]} 60. Rc8 {[%clk 0:00:07]}  Kd5 {[%clk 0:00:10]} 61. Kf3 {[%clk 0:00:06]}  Rh4 {[%clk 0:00:11]} 62. Ne2 {[%clk 0:00:04]}  Rh3+ {[%clk 0:00:11]} 63. Ng3 {[%clk 0:00:05]}  Rh4 {[%clk 0:00:11]} 64. Rd8+ {[%clk 0:00:05]}  Kc4 {[%clk 0:00:11]} 65. Rc8+ {[%clk 0:00:05]}  Kd3 {[%clk 0:00:12]} 66. Nf1 {[%clk 0:00:02]}  Rc4 {[%clk 0:00:10]} 67. Rd8+ {[%clk 0:00:02]}  Kxc3 {[%clk 0:00:10]} 68. Ne3 {[%clk 0:00:03]}  Rd4 {[%clk 0:00:09]} 69. Rc8+ {[%clk 0:00:03]}  Kb4 {[%clk 0:00:10]} 70. Nc2+ {[%clk 0:00:03]}  Kb5 {[%clk 0:00:08]} 71. Nxd4+ {[%clk 0:00:04]} 1-0


[Site "https://www.chess.com"]

[Event "Titled Tuesday Blitz August 1 Early 2023"]
[White "Materia, Marco"]
[Black "Ocelak, Jakub"]
[WhiteFideId "45150451"]
[BlackFideId "23707933"]
[WhiteElo "2686"]
[BlackElo "2515"]
[Result "1/2-1/2"]
[Round "4"]
[TimeControl "180+1"]
[Date "2023.08.01"]
[WhiteClock "0:00:25"]
[BlackClock "0:00:07"]
[Board "89"]

1. d4 {[%clk 0:03:00]}  d5 {[%clk 0:02:59]} 2. c4 {[%clk 0:03:00]}  e6 {[%clk 0:03:00]} 3. Nf3 {[%clk 0:03:00]}  Nf6 {[%clk 0:02:59]} 4. Nc3 {[%clk 0:03:01]}  c5 {[%clk 0:02:58]} 5. cxd5 {[%clk 0:03:00]}  exd5 {[%clk 0:02:59]} 6. g3 {[%clk 0:02:58]}  Nc6 {[%clk 0:02:59]} 7. Bg2 {[%clk 0:02:58]}  cxd4 {[%clk 0:03:00]} 8. Nxd4 {[%clk 0:02:58]}  Bc5 {[%clk 0:03:01]} 9. Nxc6 {[%clk 0:02:57]}  bxc6 {[%clk 0:03:01]} 10. O-O {[%clk 0:02:57]}  O-O {[%clk 0:03:01]} 11. Na4 {[%clk 0:02:57]}  Bb6 {[%clk 0:03:00]} 12. b3 {[%clk 0:02:54]}  Ba6 {[%clk 0:02:56]} 13. Ba3 {[%clk 0:02:43]}  Re8 {[%clk 0:02:55]} 14. Re1 {[%clk 0:02:44]}  Ba5 {[%clk 0:02:29]} 15. b4 {[%clk 0:02:42]}  Bb6 {[%clk 0:02:29]} 16. Rc1 {[%clk 0:02:35]}  Qe7 {[%clk 0:02:11]} 17. e3 {[%clk 0:02:32]}  Rec8 {[%clk 0:02:01]} 18. Qb3 {[%clk 0:02:14]}  Bc4 {[%clk 0:01:59]} 19. Qb1 {[%clk 0:02:05]}  Bc7 {[%clk 0:01:49]} 20. Rc3 {[%clk 0:01:57]}  Be5 {[%clk 0:01:45]} 21. b5 {[%clk 0:01:55]}  Qe8 {[%clk 0:01:32]} 22. Rxc4 {[%clk 0:01:45]}  dxc4 {[%clk 0:01:29]} 23. bxc6 {[%clk 0:01:45]}  Rxc6 {[%clk 0:01:29]} 24. Bxc6 {[%clk 0:01:39]}  Qxc6 {[%clk 0:01:30]} 25. Qc2 {[%clk 0:01:40]}  Rc8 {[%clk 0:01:29]} 26. Rc1 {[%clk 0:01:38]}  Ne4 {[%clk 0:01:26]} 27. f4 {[%clk 0:01:23]}  Bf6 {[%clk 0:01:23]} 28. Bb2 {[%clk 0:01:12]}  Bxb2 {[%clk 0:01:11]} 29. Nxb2 {[%clk 0:01:12]}  c3 {[%clk 0:01:11]} 30. Nd1 {[%clk 0:01:09]}  f5 {[%clk 0:01:01]} 31. Nf2 {[%clk 0:01:06]}  Nd2 {[%clk 0:00:59]} 32. h3 {[%clk 0:00:50]}  Qf3 {[%clk 0:00:46]} 33. Qxf5 {[%clk 0:00:40]}  Qxg3+ {[%clk 0:00:45]} 34. Kh1 {[%clk 0:00:41]}  Rf8 {[%clk 0:00:36]} 35. Qd5+ {[%clk 0:00:29]}  Kh8 {[%clk 0:00:35]} 36. Qg2 {[%clk 0:00:29]}  Qxe3 {[%clk 0:00:32]} 37. Nd1 {[%clk 0:00:27]}  Qe1+ {[%clk 0:00:24]} 38. Kh2 {[%clk 0:00:27]}  Nf1+ {[%clk 0:00:22]} 39. Kh1 {[%clk 0:00:27]}  Ng3+ {[%clk 0:00:13]} 40. Kh2 {[%clk 0:00:27]}  Nf1+ {[%clk 0:00:14]} 41. Kh1 {[%clk 0:00:27]}  Ne3+ {[%clk 0:00:12]} 42. Qg1 {[%clk 0:00:27]}  Qxg1+ {[%clk 0:00:11]} 43. Kxg1 {[%clk 0:00:28]}  Nxd1 {[%clk 0:00:09]} 44. Rxd1 {[%clk 0:00:29]}  c2 {[%clk 0:00:09]} 45. Rc1 {[%clk 0:00:28]}  Rc8 {[%clk 0:00:10]} 46. Kf2 {[%clk 0:00:28]}  Kg8 {[%clk 0:00:10]} 47. Ke3 {[%clk 0:00:23]}  Kf7 {[%clk 0:00:11]} 48. a4 {[%clk 0:00:19]}  Kf6 {[%clk 0:00:11]} 49. a5 {[%clk 0:00:19]}  Kf5 {[%clk 0:00:08]} 50. a6 {[%clk 0:00:20]}  Rc6 {[%clk 0:00:07]} 51. Kd3 {[%clk 0:00:19]}  Rxa6 {[%clk 0:00:07]} 52. Rxc2 {[%clk 0:00:19]}  Ra3+ {[%clk 0:00:08]} 53. Kd4 {[%clk 0:00:19]}  Kxf4 {[%clk 0:00:07]} 54. Rc7 {[%clk 0:00:20]}  Rxh3 {[%clk 0:00:04]} 55. Rf7+ {[%clk 0:00:20]}  Kg5 {[%clk 0:00:03]} 56. Rxg7+ {[%clk 0:00:21]}  Kf6 {[%clk 0:00:03]} 57. Rxa7 {[%clk 0:00:21]}  h5 {[%clk 0:00:03]} 58. Ke4 {[%clk 0:00:22]}  Kg5 {[%clk 0:00:03]} 59. Rg7+ {[%clk 0:00:21]}  Kh4 {[%clk 0:00:03]} 60. Rg1 {[%clk 0:00:19]}  Rh2 {[%clk 0:00:03]} 61. Kf3 {[%clk 0:00:20]}  Ra2 {[%clk 0:00:03]} 62. Rh1+ {[%clk 0:00:20]}  Kg5 {[%clk 0:00:03]} 63. Kg3 {[%clk 0:00:20]}  Ra3+ {[%clk 0:00:03]} 64. Kh2 {[%clk 0:00:21]}  h4 {[%clk 0:00:04]} 65. Rb1 {[%clk 0:00:21]}  Kg4 {[%clk 0:00:04]} 66. Rb4+ {[%clk 0:00:22]}  Kh5 {[%clk 0:00:04]} 67. Rb5+ {[%clk 0:00:22]}  Kg6 {[%clk 0:00:04]} 68. Rb6+ {[%clk 0:00:23]}  Kg5 {[%clk 0:00:05]} 69. Rb5+ {[%clk 0:00:23]}  Kg6 {[%clk 0:00:05]} 70. Rb6+ {[%clk 0:00:24]}  Kg5 {[%clk 0:00:06]} 71. Rb5+ {[%clk 0:00:24]}  Kg4 {[%clk 0:00:06]} 72. Rb4+ {[%clk 0:00:25]}  Kg5 {[%clk 0:00:07]} 73. Rb5+ {[%clk 0:00:25]} 1/2-1/2


[Site "https://www.chess.com"]

[Event "Titled Tuesday Blitz August 1 Early 2023"]
[White "Boraso, Alessio"]
[Black "Rosen, Eric"]
[WhiteFideId "848077"]
[BlackFideId "2032562"]
[WhiteElo "2493"]
[BlackElo "2677"]
[Result "0-1"]
[Round "4"]
[TimeControl "180+1"]
[Date "2023.08.01"]
[WhiteClock "0:00:04"]
[BlackClock "0:00:10"]
[Board "91"]

1. e4 {[%clk 0:03:00]}  c5 {[%clk 0:02:57]} 2. Nf3 {[%clk 0:03:00]}  Nc6 {[%clk 0:02:57]} 3. c3 {[%clk 0:02:53]}  d5 {[%clk 0:02:56]} 4. exd5 {[%clk 0:02:53]}  Qxd5 {[%clk 0:02:57]} 5. d4 {[%clk 0:02:53]}  e6 {[%clk 0:02:54]} 6. Na3 {[%clk 0:02:40]}  Nf6 {[%clk 0:02:54]} 7. Be2 {[%clk 0:02:39]}  cxd4 {[%clk 0:02:49]} 8. Nb5 {[%clk 0:02:39]}  Qd8 {[%clk 0:02:50]} 9. Nbxd4 {[%clk 0:02:37]}  Bd7 {[%clk 0:02:46]} 10. O-O {[%clk 0:02:36]}  Be7 {[%clk 0:02:46]} 11. Re1 {[%clk 0:02:37]}  O-O {[%clk 0:02:46]} 12. Bf4 {[%clk 0:02:26]}  Nd5 {[%clk 0:02:35]} 13. Bg3 {[%clk 0:02:21]}  Bf6 {[%clk 0:02:36]} 14. Nxc6 {[%clk 0:02:14]}  Bxc6 {[%clk 0:02:36]} 15. Ne5 {[%clk 0:02:15]}  Bxe5 {[%clk 0:02:23]} 16. Bxe5 {[%clk 0:02:15]}  Qg5 {[%clk 0:02:23]} 17. Bg3 {[%clk 0:02:13]}  Nf4 {[%clk 0:02:21]} 18. Bf3 {[%clk 0:01:59]}  Rfd8 {[%clk 0:02:02]} 19. Bxf4 {[%clk 0:01:27]}  Qxf4 {[%clk 0:02:01]} 20. Qe2 {[%clk 0:01:26]}  Bxf3 {[%clk 0:02:01]} 21. Qxf3 {[%clk 0:01:21]}  Qxf3 {[%clk 0:02:01]} 22. gxf3 {[%clk 0:01:22]}  Rd2 {[%clk 0:02:02]} 23. Rab1 {[%clk 0:01:18]}  Rad8 {[%clk 0:02:02]} 24. Kf1 {[%clk 0:01:18]}  Rc2 {[%clk 0:01:21]} 25. Re2 {[%clk 0:01:17]}  Rdd2 {[%clk 0:01:20]} 26. Rxd2 {[%clk 0:01:17]}  Rxd2 {[%clk 0:01:21]} 27. Ke1 {[%clk 0:01:17]}  Rc2 {[%clk 0:01:18]} 28. a4 {[%clk 0:01:18]}  Kf8 {[%clk 0:01:15]} 29. a5 {[%clk 0:00:56]}  Ke7 {[%clk 0:01:12]} 30. a6 {[%clk 0:00:37]}  b6 {[%clk 0:01:03]} 31. h4 {[%clk 0:00:29]}  h5 {[%clk 0:01:03]} 32. Kf1 {[%clk 0:00:27]}  f6 {[%clk 0:00:58]} 33. Kg2 {[%clk 0:00:26]}  Kd7 {[%clk 0:00:54]} 34. Rg1 {[%clk 0:00:11]}  Ke7 {[%clk 0:00:42]} 35. Rb1 {[%clk 0:00:09]}  e5 {[%clk 0:00:37]} 36. Kg3 {[%clk 0:00:09]}  Kd6 {[%clk 0:00:32]} 37. f4 {[%clk 0:00:07]}  e4 {[%clk 0:00:30]} 38. f5 {[%clk 0:00:06]}  Ke5 {[%clk 0:00:30]} 39. Rd1 {[%clk 0:00:06]}  Rxb2 {[%clk 0:00:23]} 40. Rd7 {[%clk 0:00:05]}  Rb3 {[%clk 0:00:24]} 41. Rxa7 {[%clk 0:00:03]}  Rxc3+ {[%clk 0:00:24]} 42. Kg2 {[%clk 0:00:03]}  Kxf5 {[%clk 0:00:21]} 43. Rxg7 {[%clk 0:00:03]}  Ra3 {[%clk 0:00:22]} 44. a7 {[%clk 0:00:04]}  Kf4 {[%clk 0:00:18]} 45. Rb7 {[%clk 0:00:03]}  f5 {[%clk 0:00:18]} 46. Rxb6 {[%clk 0:00:03]}  Rxa7 {[%clk 0:00:18]} 47. Rh6 {[%clk 0:00:03]}  Kg4 {[%clk 0:00:18]} 48. Rg6+ {[%clk 0:00:02]}  Kxh4 {[%clk 0:00:17]} 49. Rf6 {[%clk 0:00:03]}  Kg5 {[%clk 0:00:16]} 50. Rf8 {[%clk 0:00:03]}  Rg7 {[%clk 0:00:16]} 51. Kf1 {[%clk 0:00:03]}  Kf4 {[%clk 0:00:16]} 52. Ra8 {[%clk 0:00:02]}  Rh7 {[%clk 0:00:15]} 53. Kg2 {[%clk 0:00:02]}  h4 {[%clk 0:00:16]} 54. Ra3 {[%clk 0:00:02]}  Rg7+ {[%clk 0:00:12]} 55. Kh2 {[%clk 0:00:01]}  Rd7 {[%clk 0:00:12]} 56. Rh3 {[%clk 0:00:02]}  Kg4 {[%clk 0:00:11]} 57. Rb3 {[%clk 0:00:02]}  Rd2 {[%clk 0:00:11]} 58. Kg2 {[%clk 0:00:03]}  h3+ {[%clk 0:00:11]} 59. Kf1 {[%clk 0:00:01]}  Rd1+ {[%clk 0:00:11]} 60. Ke2 {[%clk 0:00:01]}  Ra1 {[%clk 0:00:11]} 61. Rg3+ {[%clk 0:00:02]}  Kh4 {[%clk 0:00:11]} 62. Rg8 {[%clk 0:00:02]}  Ra3 {[%clk 0:00:10]} 63. Kf1 {[%clk 0:00:02]}  f4 {[%clk 0:00:09]} 64. Rh8+ {[%clk 0:00:02]}  Kg4 {[%clk 0:00:10]} 65. Rg8+ {[%clk 0:00:03]}  Kf3 {[%clk 0:00:09]} 66. Rh8 {[%clk 0:00:04]}  Ra1# {[%clk 0:00:10]} 0-1


[Site "https://www.chess.com"]